Cogmind - Beta 12 X6 @@@ ROGUE MODE // 2023.02.13 @ 00:09:41 Player: Jezoensis Result: Destroyed by S-43 Plague with Heavy Machine Gun Performance ------------- Evolutions (9) 4500 Regions Visited (28) 5600 Robots Destroyed (223) 1115 Value Destroyed (11705) 11705 Prototype IDs (7) 140 Alien Tech Used (0) 0 Bonus (10025) 10025 TOTAL SCORE: 33085 Bonus ------- High Alert Combat Kills 1760 Follower Combat Kills 695 Entered Garrisons 2200 Used RIF Installer 5500 Friendly Fire -130 Cogmind --------- Core Integrity 0/1600 Matter 290/300 Energy 98/100 System Corruption 0% Temperature Cool (0) Movement Core (50) Location -1/Access Parts ------- > --- POWER (2) -------- (None) > --- PROPULSION (5) --- (None) > --- UTILITY (14) ----- Advanced Melee Analysis Suite Improved System Guard > --- WEAPON (4) ------- (None) > --- INVENTORY (5) ---- Medium Storage Unit Advanced Sensor Array Advanced Sensor Array Peak State ------------ > --- POWER ------------ Micro Antimatter Reactor Light Quantum Reactor > --- PROPULSION ------- Flexi-carbon Leg Flexi-carbon Leg Flexi-carbon Leg Flexi-carbon Leg Myomer Leg > --- UTILITY ---------- Advanced Cryofiber Web Advanced Heat Sink Large Storage Unit Advanced Visual Processing Unit Advanced Signal Interpreter Advanced Targeting Computer Weapon Cycler Heavy Armor Plating Relay Coupler [Grunt] Relay Coupler [Sentry] Relay Coupler [Hunter] > --- WEAPON ----------- Gatling Laser Gatling Laser Plasma Rifle KE Penetrator > --- INVENTORY -------- Light Antimatter Reactor Biometal Leg Biometal Leg Biometal Leg Structural Scanner Advanced Sensor Array Advanced Sensor Array Improved Medium Armor Plating Relay Coupler [Swarmer] KE Penetrator Railgun Railgun Railgun Improved Remote Datajack Powered Hammer [Rating: 117] Favorites ----------- Power Light Nuclear Core Engine Light Ion Engine Power Core Light Nuclear Core Reactor Antimatter Reactor Propulsion Flexi-carbon Leg Treads Advanced Medium Treads Leg Flexi-carbon Leg Wheel Compact Wheel Flight Unit VTOL Module Utility Large Storage Unit Device Seismic Detector Storage Large Storage Unit Processor Visual Processing Unit Hackware Relay Coupler [Sentry] Protection Improved Medium Armor Plating Weapon Gauss Rifle Energy Gun Plasma Rifle Energy Cannon HERF Cannon Ballistic Gun Gauss Rifle Ballistic Cannon Tri-rail Accelerator Launcher Mini Grenade Launcher Special Weapon Improved Remote Datajack Impact Weapon Heavy Mace Slashing Weapon Katana Build | -11 -10 -10 -9 -9 -8 -8 -8 -8 -7 -7 -7 -7 -6 -6 -5 -5 -5 -5 -4 -4 -4 -3 -3 -2 -2 -1 -1 -1 ------- Run | Jun Mat Min Mat Min Mat Gar Mat Gar Fac Gar Fac Gar Fac Gar Fac Gar Fac Gar Fac Gar Ext Res Gar Res Gar Acc Gar Acc Slots Evolved 18 | . . . 2 . 2 . . . 2 . . . 2 . 2 . . . 2 . . 2 . 2 . 2 . . Power 1 | . . . . . . . . . . . . . . . . . . . . . . 1 . . . . . . Propulsion 3 | . . . 1 . . . . . 1 . . . . . . . . . 1 . . . . . . . . . Utility 12 | . . . 1 . 2 . . . . . . . 2 . 2 . . . 1 . . 1 . 1 . 2 . . Weapon 2 | . . . . . . . . . 1 . . . . . . . . . . . . . . 1 . . . . Parts Attached 576 | 5 8 7 22 4 25 9 14 37 8 31 15 33 8 24 10 37 14 40 15 29 77 7 43 7 32 13 . 2 Power 35 | . 1 2 1 . 3 2 2 . . 1 . 4 1 2 . 3 1 . 1 1 3 1 3 . 3 . . . Engine 8 | . 1 2 1 . 3 . . . . . . 1 . . . . . . . . . . . . . . . . Core 16 | . . . . . . 2 2 . . 1 . 3 1 2 . 3 1 . . . 1 . . . . . . . Reactor 11 | . . . . . . . . . . . . . . . . . . . 1 1 2 1 3 . 3 . . . Propulsion 90 | 2 . 2 2 1 5 1 3 5 4 5 1 2 3 7 2 5 . 6 2 3 16 . 4 1 5 3 . . Treads 1 | . . . . . . . . . . . . . . . . . . . . . . . . . . 1 . . Leg 85 | 2 . 2 2 1 5 1 3 5 4 5 1 2 . 6 2 5 . 6 2 3 16 . 4 1 5 2 . . Wheel 3 | . . . . . . . . . . . . . 3 . . . . . . . . . . . . . . . Hover . | . . . . . . . . . . . . . . . . . . . . . . . . . . . . . Flight 1 | . . . . . . . . . . . . . . 1 . . . . . . . . . . . . . . Utility 252 | 1 5 1 5 2 9 5 7 16 3 14 10 16 3 7 4 13 9 27 9 9 33 5 18 4 8 7 . 2 Device 174 | 1 3 1 3 2 3 4 3 10 2 7 6 8 2 6 4 11 8 23 6 7 26 4 13 3 5 2 . 1 Storage 12 | . 2 . 1 . 3 1 2 . . . . 2 . . . . . . 1 . . . . . . . . . Processor 17 | . . . 1 . 1 . . . 1 2 . 1 1 . . . . . 2 . 1 1 1 . . 4 . 1 Hackware 8 | . . . . . . . . . . . . . . . . 1 . 2 . 1 1 . 1 1 1 . . . Protection 41 | . . . . . 2 . 2 6 . 5 4 5 . 1 . 1 1 2 . 1 5 . 3 . 2 1 . . Artifact . | . . . . . . . . . . . . . . . . . . . . . . . . . . . . . Weapon 199 | 2 2 2 14 1 8 1 2 16 1 11 4 11 1 8 4 16 4 7 3 16 25 1 18 2 16 3 . . Energy Gun 64 | 1 . 1 6 1 . . . 3 . 3 1 5 . 3 1 12 2 4 1 10 4 . 4 1 1 . . . Energy Cannon 1 | . . . . . . . . . . . . . . . . . . . . . . . . . . 1 . . Ballistic Gun 62 | 1 1 1 3 . 6 1 1 8 . 4 1 3 1 3 1 . 1 2 . . 10 . 5 . 9 . . . Ballistic Cannon 1 | . . . . . . . . . . . . . . . . . 1 . . . . . . . . . . . Launcher 21 | . 1 . 2 . 2 . 1 2 . 2 . 1 . 2 . 2 . . . 2 2 . 2 . . . . . Special Weapon 29 | . . . 3 . . . . . . . . . . . . 2 . 1 . 4 8 . 7 . 4 . . . Impact Weapon 15 | . . . . . . . . . . . 2 2 . . 2 . . . 2 . 1 1 . 1 2 2 . . Slashing Weapon 6 | . . . . . . . . 3 1 2 . . . . . . . . . . . . . . . . . . Piercing Weapon . | . . . . . . . . . . . . . . . . . . . . . . . . . . . . . Special Melee Weapon . | . . . . . . . . . . . . . . . . . . . . . . . . . . . . . Unidentified Prototypes 7 | . . . 1 . . . . . . . . . . 1 . . 2 . 1 . . . . . . 2 . . Corrupted Parts 1 | . . . . . . . . . . . . . . . . . . . . . 1 . . . . . . . System Corruption 10 | . . . . . . . . . . . . . . . . . . . . . 10 . . . . . . . Parts Lost 78 | . . 3 2 . 1 . . 4 . 2 . 11 . 1 . 6 1 2 1 2 4 . 6 . 23 1 6 2 Power 14 | . . 2 1 . 1 . . . . . . 2 . . . 1 1 . . . 1 . 2 . 3 . . . Propulsion 24 | . . . 1 . . . . 2 . . . 4 . 1 . 1 . 1 . . 1 . 2 . 8 . 3 . Utility 20 | . . . . . . . . 2 . . . 2 . . . 2 . . 1 2 1 . . . 5 1 2 2 Weapon 20 | . . 1 . . . . . . . 2 . 3 . . . 2 . 1 . . 1 . 2 . 7 . 1 . Highest Loss Streak 16 | . . 3 2 . 1 . . 4 . 1 . 10 . 1 . 4 1 1 1 1 2 . 2 . 16 1 6 2 To Critical Strikes . | . . . . . . . . . . . . . . . . . . . . . . . . . . . . . Average Slot Usage (%) 94 | . 97 84 98 100 98 95 99 92 100 100 100 89 93 95 100 99 99 100 99 99 99 99 96 100 88 20 25 12 Engine 1 | . 13 5 10 11 7 1 . . . . . . . . . . . . . . . . . . . . . . Core 3 | . . . . . . 3 9 9 7 7 7 5 6 6 5 5 5 5 . . 1 . . . . . . . Reactor 1 | . . . . . . . . . . . . . . . . . . . 4 5 3 9 8 8 7 . . . Leg 24 | . 28 28 32 33 27 27 27 26 30 30 30 23 13 15 23 22 23 23 26 26 25 23 22 21 19 6 5 . Device 13 | . 12 7 14 11 20 9 12 13 12 5 12 6 19 13 23 19 17 16 20 15 13 13 9 14 11 . . 1 Storage 6 | . 13 14 11 11 9 9 9 9 7 7 7 7 6 6 5 5 5 5 5 5 5 4 4 4 3 . . . Processor 13 | . . . 7 11 11 18 18 10 12 21 16 17 20 20 17 17 15 11 10 10 10 14 15 14 12 7 15 10 Hackware 4 | . . . . . . . . . . . . . . . . . 5 5 10 12 15 14 14 14 12 . . . Protection 4 | . . . . . 3 9 4 5 4 3 . 5 . 6 5 6 5 10 5 6 5 4 4 4 3 . . . Energy Gun 8 | . 14 14 7 11 . . . 3 . 3 1 4 . 7 10 14 16 14 12 14 10 9 10 13 10 . . . Ballistic Gun 7 | . 14 14 12 11 16 18 18 10 15 16 15 13 11 10 5 1 . 2 . . 3 3 1 . 2 . . . Naked Turns 28 | . . . . . . . . . . . . . . . . . . . . . . . . . 21 7 . . Heaviest Build 85 | 3 16 16 30 30 33 36 40 40 40 47 43 46 38 61 63 71 59 60 56 59 65 73 81 77 85 3 3 1 Greatest Support 110 | 3 20 20 33 33 33 38 40 40 50 56 55 63 36 63 73 73 63 73 90 85 110 100 100 100 105 30 3 3 Greatest Overweight (x) 2 | . . . . . . . . 1 . . . . 1 2 . 1 . . . . . . . . . . . . Average Overweight (x) . | . . . . . . . . . . . . . . . . . . . . . . . . . . . . . Largest Inventory Capacity 15 | 5 10 10 15 15 15 15 15 15 15 15 15 15 15 15 15 15 15 15 15 15 15 15 15 15 15 5 5 5 Average Capacity 14 | 5 8 10 14 15 13 12 10 15 15 15 15 14 15 15 15 15 15 15 15 15 15 15 15 15 14 5 5 5 Most Carried 15 | 5 10 10 15 15 15 12 12 15 15 15 15 15 15 15 15 15 15 15 15 15 15 15 15 14 15 5 4 4 Average Carried 13 | 3 7 9 13 14 13 10 10 14 14 14 14 13 13 14 14 14 14 14 14 14 14 13 14 12 11 4 4 3 Final Capacity 15 | 5 10 10 15 15 10 15 15 15 15 15 15 15 15 15 15 15 15 15 15 15 15 15 15 15 5 5 5 5 Final Carried 15 | 5 9 10 15 15 10 12 12 15 15 15 15 13 15 15 15 15 14 15 15 14 15 14 15 12 4 4 4 3 Class Distribution -------------------- 33% | Scavenger-Mutant 17% | Mutant 10% | Scavenger-Assassin 8% | Scavenger-Tank 8% | Scavenger-Gunner 5% | Scavenger-Skirmisher 3% | Botlord-Mutant 3% | Botlord-Skirmisher Dominant Class ---------------- Mutant | -10/Materials Mutant | -10/Mines Mutant | -9/Materials Scavenger-Mutant | -9/Mines Scavenger-Mutant | -8/Materials Mutant | -8/Garrison Scavenger-Mutant | -8/Materials Scavenger-Mutant | -8/Garrison Scavenger-Assassin | -7/Factory Scavenger-Mutant | -7/Garrison Scavenger-Assassin | -7/Factory Scavenger-Mutant | -7/Garrison Scavenger-Assassin | -6/Factory Scavenger-Gunner | -6/Garrison Scavenger-Skirmisher | -5/Factory Scavenger-Mutant | -5/Garrison Scavenger-Skirmisher | -5/Factory Scavenger-Tank | -5/Garrison Scavenger-Assassin | -4/Factory Bothacker-Tank | -4/Garrison Botlord-Skirmisher | -4/Extension Scavenger-Skirmisher | -3/Research Scavenger-Mutant | -3/Garrison Scavenger-Mutant | -2/Research Scavenger-Gunner | -2/Garrison Mutant | -1/Access Mutant | -1/Garrison Mutant | -1/Access Resources | -11 -10 -10 -9 -9 -8 -8 -8 -8 -7 -7 -7 -7 -6 -6 -5 -5 -5 -5 -4 -4 -4 -3 -3 -2 -2 -1 -1 -1 ----------- Run | Jun Mat Min Mat Min Mat Gar Mat Gar Fac Gar Fac Gar Fac Gar Fac Gar Fac Gar Fac Gar Ext Res Gar Res Gar Acc Gar Acc Matter Collected 8573 | 194 129 133 196 162 330 68 218 773 23 590 243 600 86 355 112 561 30 611 73 365 1285 . 711 10 489 226 . . Remotely . | . . . . . . . . . . . . . . . . . . . . . . . . . . . . . Salvage Created 10282 | 26 175 194 234 87 260 18 197 755 23 525 283 628 134 347 25 1052 30 598 73 605 1851 . 822 10 938 392 . . Parts 419 | 3 22 9 19 4 20 1 11 48 2 23 9 18 6 18 3 44 2 23 5 17 51 . 21 2 35 3 . . Haulers Intercepted 3 | . 1 . 1 . . . . . . . . . . . . . . . . . . . . . . 1 . . Recyclers Shooed 8 | 1 . 1 . . . . . . 1 . . . . . 3 . . . . . 1 . . . . 1 . . Parts Field Recycled . | . . . . . . . . . . . . . . . . . . . . . . . . . . . . . Retrieved Matter . | . . . . . . . . . . . . . . . . . . . . . . . . . . . . . Parts Self-Destructed . | . . . . . . . . . . . . . . . . . . . . . . . . . . . . . Prevented . | . . . . . . . . . . . . . . . . . . . . . . . . . . . . . Kills | -11 -10 -10 -9 -9 -8 -8 -8 -8 -7 -7 -7 -7 -6 -6 -5 -5 -5 -5 -4 -4 -4 -3 -3 -2 -2 -1 -1 -1 ------- Run | Jun Mat Min Mat Min Mat Gar Mat Gar Fac Gar Fac Gar Fac Gar Fac Gar Fac Gar Fac Gar Ext Res Gar Res Gar Acc Gar Acc Combat Hostiles Destroyed 185 | . 5 3 5 2 10 1 4 20 . 14 1 16 1 9 1 22 . 9 . 13 21 . 14 . 14 . . . Melee 1 | . . . . . . . . 1 . . . . . . . . . . . . . . . . . . . . Guns 124 | . 5 3 2 2 6 1 1 12 . 10 1 12 1 8 1 12 . 8 . 4 15 . 8 . 12 . . . AOE 39 | . . . 3 . 4 . 3 6 . 4 . 4 . 1 . 8 . . . 4 . . 2 . . . . . Classes Destroyed 19 | 1 4 2 2 . 2 . . 2 . 2 . . . . . 2 . . . . 1 . . . . 1 . . Worker 4 | . . 1 . . . . . . . . . . . . . . . . 1 . 1 . . . . 1 . . Builder 8 | . 2 1 1 . . . . . . . . . . . . . . . 1 . 3 . . . . . . . Tunneler 4 | 1 . . . . . . . . 1 . . . . . . . 1 . . . . . . 1 . . . . Hauler 3 | . 1 . 1 . . . . . . . . . . . . . . . . . . . . . . 1 . . Recycler 9 | . . . . . 1 . . . . . 2 . 1 . . . . . . . 3 . . . . 2 . . Mechanic 1 | . . . 1 . . . . . . . . . . . . . . . . . . . . . . . . . Operator 1 | . . . . . . . . . . . . . . . . . . . . . . . . . . 1 . . Watcher 8 | . 1 . 2 . . . 1 . . . 2 . . . . . . . 1 . 1 . . . . . . . Swarmer 40 | . 5 . . . 6 1 . 4 . 4 . 4 1 2 1 4 . . . 4 . . 3 . 1 . . . Cutter 7 | . . . . . . . . . . . . . . . . 3 . . . . . . . . 4 . . . Saboteur 1 | . . . . . . . . . . . . . . . . . . . . . 1 . . . . . . . Grunt 64 | . . 3 3 1 1 . 3 4 . 6 . 5 . 4 . 8 . 7 . 3 7 . 5 . 4 . . . Brawler 4 | . . . . . . . . . . 1 . 1 . . . . . 1 . . . . 1 . . . . . Duelist 5 | . . . 2 1 . . . 1 . . . . . . . . . . . . 1 . . . . . . . Sentry 31 | . . . . . 3 . 1 8 . . 1 3 . . . 4 . . . 2 7 . 1 . 1 . . . Specialist 2 | . . . . . . . . 1 . . . . . . . . . . . . . . 1 . . . . . Hunter 13 | . . . . . . . . 2 . 2 . . . 2 . . . . . 2 . . 2 . 3 . . . Programmer 12 | . . . . . . . . . . 1 . 3 . 1 . 2 . . . 2 3 . . . . . . . Behemoth 5 | . . . . . . . . . . . . . . . . 1 . 1 . . 1 . 1 . 1 . . . Thug 1 | . . . . . . . . . . . . . . . . . . . . . 1 . . . . . . . Best Kill Streak 10 | 1 3 2 4 2 4 1 3 10 1 4 1 7 1 2 1 6 1 3 2 4 5 . 5 1 5 4 . . Combat Bots Only 10 | . 3 1 3 2 3 1 3 10 . 4 1 7 1 2 1 6 . 3 . 4 4 . 5 . 5 . . . Max Kills in Single Turn 4 | 1 1 1 2 1 4 1 3 2 1 4 1 2 1 1 1 3 1 1 1 3 3 . 1 1 2 1 . . Gunslinging 1 | . . . . . . . . 1 . . . . . . . 1 . . . . . . . . 1 . . . Exploded 4 | . . . 1 . 3 . 3 2 . 4 . 2 . 1 . 3 . . . 3 . . 1 . . . . . Melee 1 | . . . . . . . . 1 . . . . . . . . . . . . . . . . . . . . Uniques/NPCs Destroyed . | . . . . . . . . . . . . . . . . . . . . . . . . . . . . . Combat | -11 -10 -10 -9 -9 -8 -8 -8 -8 -7 -7 -7 -7 -6 -6 -5 -5 -5 -5 -4 -4 -4 -3 -3 -2 -2 -1 -1 -1 -------- Run | Jun Mat Min Mat Min Mat Gar Mat Gar Fac Gar Fac Gar Fac Gar Fac Gar Fac Gar Fac Gar Ext Res Gar Res Gar Acc Gar Acc Damage Taken 17857 | . 186 319 231 24 751 . 294 869 . 833 223 1746 . 154 . 1430 30 741 64 684 1703 16 1298 . 3391 802 1570 498 Core 3491 | . 66 58 41 12 117 . . 184 . 29 . 210 . 18 . 95 . 55 . 51 201 . 55 . 681 197 975 446 Absorbed by Shields 76 | . . . . . . . . . . . . . . . . . . . . . . . . . . . 76 . Core Remaining (%) 75 | 100 . 50 . 86 . . . 45 . . . 65 . 97 . . . 85 . . 78 . 95 . 53 . . . Volleys Fired 660 | 3 36 23 25 4 22 6 9 47 . 35 10 39 2 14 3 65 1 44 6 53 102 . 60 5 46 . . . Largest 4 | 2 2 2 2 2 2 2 2 2 . 3 3 3 2 3 3 3 3 3 3 3 3 . 3 3 4 . . . Hottest 268 | 60 60 60 100 68 56 56 56 112 . 137 150 150 46 172 177 225 225 225 218 224 225 . 225 235 268 . . . Shots Fired 1454 | 6 71 46 40 8 42 9 16 76 . 97 19 84 4 33 9 125 4 115 17 107 260 . 123 7 136 . . . Gun 1353 | 6 70 46 30 8 40 9 14 68 . 94 19 82 4 31 9 116 4 113 17 96 239 . 110 3 125 . . . Cannon . | . . . . . . . . . . . . . . . . . . . . . . . . . . . . . Launcher 40 | . 1 . 5 . 2 . 2 8 . 3 . 2 . 2 . 5 . . . 3 3 . 4 . . . . . Special 61 | . . . 5 . . . . . . . . . . . . 4 . 2 . 8 18 . 9 4 11 . . . Kinetic 541 | 3 35 23 18 4 40 9 14 54 . 75 12 50 4 21 3 20 . 14 . . 66 . 25 . 51 . . . Thermal 777 | 3 35 23 17 . . . . 14 . 6 7 32 . 10 6 73 4 99 17 96 173 . 85 3 74 . . . Explosive 40 | . 1 . 5 . 2 . 2 8 . 3 . 2 . 2 . 5 . . . 3 3 . 4 . . . . . Electromagnetic 40 | . . . . 4 . . . . . 13 . . . . . 23 . . . . . . . . . . . . Robot Hit Streak 44 | 3 6 10 19 7 12 2 7 11 . 11 8 15 3 11 4 41 43 44 5 16 23 . 35 2 28 . . . Robot Miss Streak 5 | 1 5 3 1 1 3 . 1 2 . 4 3 5 1 2 2 4 . 2 4 4 3 . 3 3 5 . . . Penetration Max 1 | . . . . . . . . . . 1 . 1 . . 1 . . 1 . . 1 . . . 1 . . . Secondary Targets 21 | . . 1 . . 1 . . 2 . 2 . 2 . 1 . 3 . . . 1 3 . 2 . 3 . . . Max Gunslinging Chain 1 | . . 1 . . 1 . . 1 . 1 . 1 . 1 . 1 . . . 1 1 . 1 . 1 . . . Shots Hit Robots 1050 | 4 33 33 28 7 29 1 11 48 2 58 11 64 4 25 7 100 2 80 13 75 207 . 93 3 101 11 . . Core Hits 479 | 2 13 12 18 5 16 2 8 31 . 27 5 36 4 20 3 59 1 28 8 30 67 . 28 1 53 1 1 . Critical Kills 2 | . . . . . . . . . . . . . . 1 . 1 . . . . . . . . . . . . Critical Parts Destroyed 10 | . . . . . . . . 1 . 4 . . . . . 1 . . . . 1 . 1 . 1 1 . . Critical Strikes 41 | . . . . . . . . 3 . 5 . . . 1 . 4 . 4 1 1 11 . 7 . 3 1 . . Burn 26 | . . . . . . . . 1 . . . . . . . 1 . 4 1 1 10 . 6 . 2 . . . Destroy 11 | . . . . . . . . 1 . 4 . . . 1 . 2 . . . . 1 . 1 . 1 . . . Corrupt 2 | . . . . . . . . . . 1 . . . . . 1 . . . . . . . . . . . . Smash 1 | . . . . . . . . . . . . . . . . . . . . . . . . . . 1 . . Sever 1 | . . . . . . . . 1 . . . . . . . . . . . . . . . . . . . . Melee Attacks 97 | . . . . . . . . 14 8 4 11 3 3 . 4 3 . . 10 2 14 1 . 1 6 13 . . Impact 69 | . . . . . . . . . . . 9 3 3 . 4 3 . . 10 2 14 1 . 1 6 13 . . Slashing 28 | . . . . . . . . 14 8 4 2 . . . . . . . . . . . . . . . . . Piercing . | . . . . . . . . . . . . . . . . . . . . . . . . . . . . . Sneak Attacks 13 | . . . . . . . . 2 2 . 3 . 1 . . . . . 1 . . . . . . 4 . . Combat Hostiles 2 | . . . . . . . . 2 . . . . . . . . . . . . . . . . . . . . Follow-up Attacks . | . . . . . . . . . . . . . . . . . . . . . . . . . . . . . Damage Inflicted 27293 | 43 326 317 767 100 760 23 447 1523 120 1713 410 1987 105 627 161 2677 25 1797 287 1908 5463 . 2448 33 2438 765 23 . Guns 21106 | 43 322 317 274 100 429 20 205 683 . 1274 203 1482 42 477 161 1965 25 1797 241 1582 5020 . 1973 33 2438 . . . Cannons . | . . . . . . . . . . . . . . . . . . . . . . . . . . . . . Explosions 4786 | . 4 . 493 . 331 3 242 663 . 439 . 505 . 150 . 712 . . . 326 443 . 475 . . . . . Melee 1378 | . . . . . . . . 177 120 . 207 . 63 . . . . . 46 . . . . . . 765 . . Ramming 23 | . . . . . . . . . . . . . . . . . . . . . . . . . . . 23 . Kinetic 7563 | 10 119 129 171 48 429 20 205 523 . 1032 145 859 42 239 61 318 . 309 . . 1592 . 430 . 882 . . . Thermal 13081 | 33 203 188 103 . . . . 160 . 97 58 623 . 238 100 1382 25 1488 241 1582 3428 . 1543 33 1556 . . . Explosive 4732 | . 4 . 493 . 331 3 242 663 . 439 . 505 . 150 . 658 . . . 326 443 . 475 . . . . . Electromagnetic 516 | . . . . 52 . . . . . 145 . . . . . 319 . . . . . . . . . . . . Impact 1081 | . . . . . . . . . . . 207 . 63 . . . . . 46 . . . . . . 765 . . Slashing 297 | . . . . . . . . 177 120 . . . . . . . . . . . . . . . . . . . Piercing . | . . . . . . . . . . . . . . . . . . . . . . . . . . . . . Highest Corruption 14 | . . . . . . 1 1 1 . . 1 6 . . . 3 5 5 . 2 14 . . . . . . . Average Corruption 2 | . . . . . . 1 1 1 . . 1 4 . . . 2 2 5 . 1 2 . . . . . . . Corruption Purged 4 | . . . . . . . . . . . . . . . . . 4 . . . . . . . . . . . Corruption Blocked . | . . . . . . . . . . . . . . . . . . . . . . . . . . . . . Effects 90 | . . . . . . 3 1 4 . . 3 16 . . . 10 4 17 . 13 19 . . . . . . . Message Errors 18 | . . . . . . 1 . 1 . . . 3 . . . 2 . 4 . 4 3 . . . . . . . Matter Fused 20 | . . . . . . . . . . . 2 3 . . . 3 1 6 . . 5 . . . . . . . Heat Flow Errors 12 | . . . . . . . . 2 . . . 2 . . . 1 . 1 . 2 4 . . . . . . . Energy Discharges 13 | . . . . . . 1 1 . . . 1 2 . . . 1 . 1 . 4 2 . . . . . . . Parts Rejected 1 | . . . . . . . . . . . . 1 . . . . . . . . . . . . . . . . Data Loss (minor) 9 | . . . . . . . . 1 . . . 2 . . . . 1 1 . 2 2 . . . . . . . Data Loss (major) 2 | . . . . . . 1 . . . . . . . . . . . 1 . . . . . . . . . . Misfires 5 | . . . . . . . . . . . . 1 . . . . 1 1 . . 2 . . . . . . . Alerts 3 | . . . . . . . . . . . . 1 . . . 1 1 . . . . . . . . . . . Weapon Failures 7 | . . . . . . . . . . . . 1 . . . 2 . 2 . 1 1 . . . . . . . Overload Shots . | . . . . . . . . . . . . . . . . . . . . . . . . . . . . . Overflow Damage 495 | . . . . . . . 14 1 50 . 102 . . . . . . . 16 . 42 . 38 . . 232 . . Projectiles . | . . . . . . . . . . . . . . . . . . . . . . . . . . . . . Explosions 95 | . . . . . . . 14 1 . . . . . . . . . . . . 42 . 38 . . . . . Melee 400 | . . . . . . . . . 50 . 102 . . . . . . . 16 . . . . . . 232 . . Knockbacks 5 | . . . . . . . . . . . 2 . . . . . . . . . . . . . . 3 . . Impact 5 | . . . . . . . . . . . 2 . . . . . . . . . . . . . . 3 . . Kinetic . | . . . . . . . . . . . . . . . . . . . . . . . . . . . . . Secondary . | . . . . . . . . . . . . . . . . . . . . . . . . . . . . . Self-Inflicted Damage 78 | . . . 5 . . . . . . 9 . . . . . 34 . . . . 20 . . . . . 10 . Shots 5 | . . . 1 . . . . . . 1 . . . . . 2 . . . . 1 . . . . . . . Rammed 4 | . . . . . . . . . . . . . . . . . . . . . . . . . . . 4 . Targets Rammed 4 | . . . . . . . . . . . . . . . . . . . . . . . . . . . 4 . Kicked . | . . . . . . . . . . . . . . . . . . . . . . . . . . . . . Crushed . | . . . . . . . . . . . . . . . . . . . . . . . . . . . . . Highest Temperature 397 | 10 60 165 14 . . . 14 231 . 228 213 309 . 229 96 367 144 397 58 258 377 . 250 . 271 . . . Average Temperature 83 | 7 18 66 6 . . . 6 36 . 63 84 95 . 65 51 69 68 134 27 95 151 . 112 . 104 . . . Received Heat Transfer 3219 | . . 210 18 12 189 . 108 162 . 234 42 399 . 45 . 300 . 291 . 81 261 9 219 . 423 180 . 36 Effects 7 | . . . . . . . . . . . . 2 . . . 1 . 3 . . . . . . 1 . . . Energy Bleed 4 | . . . . . . . . . . . . 2 . . . 1 . 1 . . . . . . . . . . Interference 3 | . . . . . . . . . . . . . . . . . . 2 . . . . . . 1 . . . Siege Activations . | . . . . . . . . . . . . . . . . . . . . . . . . . . . . . Robots Corrupted . | . . . . . . . . . . . . . . . . . . . . . . . . . . . . . Combat Hostiles . | . . . . . . . . . . . . . . . . . . . . . . . . . . . . . Parts Fried 14 | . . . . . . . . . . . 2 . . . . . . . 5 . . . . . . 7 . . Impact Corruptions 12 | . . . . . . . . . . . 4 . . . . . . . 1 . . . . . . 7 . . Robots Melted 21 | . . . . . . . . 1 . . . . . . . 2 . 1 . 5 6 . 4 . 2 . . . Combat Hostiles 21 | . . . . . . . . 1 . . . . . . . 2 . 1 . 5 6 . 4 . 2 . . . Parts Melted 93 | . 1 . . . . . . 2 . . . . . 2 . 10 . 5 1 20 26 . 11 . 15 . . . Heat Transferred 27542 | 75 475 425 250 . . . . 481 . 148 74 814 . 511 211 2538 37 2926 570 3163 7344 . 3950 75 3475 . . . Parts Sabotaged . | . . . . . . . . . . . . . . . . . . . . . . . . . . . . . Parts Stolen . | . . . . . . . . . . . . . . . . . . . . . . . . . . . . . Parts Stripped . | . . . . . . . . . . . . . . . . . . . . . . . . . . . . . Power Chain Reactions 1 | . . . . . . . . . . . . . . . . 1 . . . . . . . . . . . . Missiles Intercepted . | . . . . . . . . . . . . . . . . . . . . . . . . . . . . . Alert | -11 -10 -10 -9 -9 -8 -8 -8 -8 -7 -7 -7 -7 -6 -6 -5 -5 -5 -5 -4 -4 -4 -3 -3 -2 -2 -1 -1 -1 ------- Run | Jun Mat Min Mat Min Mat Gar Mat Gar Fac Gar Fac Gar Fac Gar Fac Gar Fac Gar Fac Gar Ext Res Gar Res Gar Acc Gar Acc Peak Influence 942 | 5 240 106 222 58 316 494 263 937 500 711 507 614 410 670 432 942 494 680 440 822 700 310 687 394 558 390 337 197 Initial 494 | . 3 . 40 8 22 205 240 170 491 350 373 229 315 287 351 198 494 342 357 308 431 308 232 386 295 268 312 177 Average 443 | 2 83 69 129 55 116 392 186 653 494 527 400 476 372 560 312 574 489 499 385 595 552 308 537 389 464 326 319 183 Maximum Alert Level 3 | . 1 . 1 . 1 2 1 3 2 3 2 2 2 2 2 3 2 2 2 3 3 1 2 1 2 1 1 . Low Security (%) 13 | 100 96 100 62 100 72 . 50 4 . . . . . . 17 2 . . . . . . . . . . . 100 Level 1 27 | . 3 . 37 . 27 54 49 9 . 28 47 44 40 22 70 35 . 17 77 11 . 100 22 100 21 100 100 . Level 2 49 | . . . . . . 45 . 44 100 52 52 55 59 77 12 26 100 82 22 62 96 . 77 . 78 . . . Level 3 9 | . . . . . . . . 42 . 18 . . . . . 35 . . . 26 3 . . . . . . . Level 4 . | . . . . . . . . . . . . . . . . . . . . . . . . . . . . . Level 5 . | . . . . . . . . . . . . . . . . . . . . . . . . . . . . . High Security . | . . . . . . . . . . . . . . . . . . . . . . . . . . . . . Max Security . | . . . . . . . . . . . . . . . . . . . . . . . . . . . . . Squads Dispatched 24 | . . . 1 . 2 . 2 . 1 . 2 . . . 3 . 1 . 1 . 7 . . . . 4 . . Investigation 6 | . . . . . . . 1 . 1 . 1 . . . 1 . . . . . 1 . . . . 1 . . Extermination 1 | . . . . . . . . . . . . . . . 1 . . . . . . . . . . . . . Reinforcement 11 | . . . 1 . . . . . . . 1 . . . 1 . . . 1 . 4 . . . . 3 . . Assault 3 | . . . . . . . . . . . . . . . . . 1 . . . 2 . . . . . . . Garrison 3 | . . . . . 2 . 1 . . . . . . . . . . . . . . . . . . . . . Intercept . | . . . . . . . . . . . . . . . . . . . . . . . . . . . . . Searches Triggered . | . . . . . . . . . . . . . . . . . . . . . . . . . . . . . Construction Impeded 2 | . . . . . . . . . . . . . . . 1 . . . . . 1 . . . . . . . Haulers Reinforced 1 | . . . . . . . . . . . . . . . . . . . . . . . . . . 1 . . Active Scanning Responses . | . . . . . . . . . . . . . . . . . . . . . . . . . . . . . Cargo Convoy Interrupts . | . . . . . . . . . . . . . . . . . . . . . . . . . . . . . Alert ID Control Effect 6 | . . . . . . . . . . . . . . . . . . . 2 . 2 . 1 . 1 . . . Stealth | -11 -10 -10 -9 -9 -8 -8 -8 -8 -7 -7 -7 -7 -6 -6 -5 -5 -5 -5 -4 -4 -4 -3 -3 -2 -2 -1 -1 -1 --------- Run | Jun Mat Min Mat Min Mat Gar Mat Gar Fac Gar Fac Gar Fac Gar Fac Gar Fac Gar Fac Gar Ext Res Gar Res Gar Acc Gar Acc Distress Signals 11 | . . . . . 2 . 1 . . . . . . . . . . . 1 . 4 . . . . 3 . . Communications Jammed 2 | . . . . . . . . . . . . . . . . . . . 2 . . . . . . . . . Distress Signals . | . . . . . . . . . . . . . . . . . . . . . . . . . . . . . Times Spotted 318 | . 11 4 13 2 14 . 11 21 . 11 7 17 2 12 9 24 . 11 8 12 34 2 18 1 28 23 14 9 Peak Tracking Total 18 | . 4 2 4 2 8 . 6 7 . 3 3 9 1 5 4 9 1 3 4 3 6 2 6 1 8 18 14 8 Tactical Retreats 20 | . 1 1 . . . . 1 . . 1 . 1 . 1 . 1 . 1 . . 5 . 4 . 1 1 . 1 Traps | -11 -10 -10 -9 -9 -8 -8 -8 -8 -7 -7 -7 -7 -6 -6 -5 -5 -5 -5 -4 -4 -4 -3 -3 -2 -2 -1 -1 -1 ------- Run | Jun Mat Min Mat Min Mat Gar Mat Gar Fac Gar Fac Gar Fac Gar Fac Gar Fac Gar Fac Gar Ext Res Gar Res Gar Acc Gar Acc Traps Triggered 23 | . . . . . . . 1 3 . 1 2 1 . 3 2 1 1 2 . . 1 . 2 . 2 . 1 . Indirectly . | . . . . . . . . . . . . . . . . . . . . . . . . . . . . . Trap Hack Attempts . | . . . . . . . . . . . . . . . . . . . . . . . . . . . . . Triggered . | . . . . . . . . . . . . . . . . . . . . . . . . . . . . . Disarmed . | . . . . . . . . . . . . . . . . . . . . . . . . . . . . . Reprogrammed . | . . . . . . . . . . . . . . . . . . . . . . . . . . . . . Reused . | . . . . . . . . . . . . . . . . . . . . . . . . . . . . . Traps Extracted . | . . . . . . . . . . . . . . . . . . . . . . . . . . . . . Installed . | . . . . . . . . . . . . . . . . . . . . . . . . . . . . . Triggered . | . . . . . . . . . . . . . . . . . . . . . . . . . . . . . Machines | -11 -10 -10 -9 -9 -8 -8 -8 -8 -7 -7 -7 -7 -6 -6 -5 -5 -5 -5 -4 -4 -4 -3 -3 -2 -2 -1 -1 -1 ---------- Run | Jun Mat Min Mat Min Mat Gar Mat Gar Fac Gar Fac Gar Fac Gar Fac Gar Fac Gar Fac Gar Ext Res Gar Res Gar Acc Gar Acc Machines Disabled 17 | . . . . . . 2 2 3 . . 2 . . . . 2 . 1 . 2 . . 1 . 1 1 . . Max in Single Turn 2 | . . . . . . 2 2 2 . . 1 . . . . 1 . 1 . 1 . . 1 . 1 1 . . Garrison Access 1 | . . . . . . . . . . . . . . . 1 . . . . . . . . . . . . . Garrison Relay 8 | . . . . . . . . 1 . . . . . . . 2 . 1 . 2 . . 1 . 1 . . . Energy Cycler 1 | . . . . . . . . . . . . . . . . . . . . . 1 . . . . . . . Machines Repaired . | . . . . . . . . . . . . . . . . . . . . . . . . . . . . . Machines Sabotaged . | . . . . . . . . . . . . . . . . . . . . . . . . . . . . . Overloaded Fab Kills . | . . . . . . . . . . . . . . . . . . . . . . . . . . . . . Hacking | -11 -10 -10 -9 -9 -8 -8 -8 -8 -7 -7 -7 -7 -6 -6 -5 -5 -5 -5 -4 -4 -4 -3 -3 -2 -2 -1 -1 -1 --------- Run | Jun Mat Min Mat Min Mat Gar Mat Gar Fac Gar Fac Gar Fac Gar Fac Gar Fac Gar Fac Gar Ext Res Gar Res Gar Acc Gar Acc Machines Accessed 58 | . 4 1 3 . 3 2 5 4 2 2 2 2 4 1 7 1 2 3 1 1 2 1 1 1 1 2 . . Terminals 43 | . 3 1 3 . 2 2 4 4 1 2 . 2 3 1 5 1 1 3 . 1 2 . 1 . 1 . . . Fabricators 1 | . . . . . . . . . . . . . . . . . . . . . . . . . . 1 . . Repair Stations . | . . . . . . . . . . . . . . . . . . . . . . . . . . . . . Recycling Units 2 | . 1 . . . . . . . . . 1 . . . . . . . . . . . . . . . . . Scanalyzers . | . . . . . . . . . . . . . . . . . . . . . . . . . . . . . Garrison Access 12 | . . . . . 1 . 1 . 1 . 1 . 1 . 2 . 1 . 1 . . 1 . 1 . 1 . . Total Hacks 122 | . 9 3 7 . 5 5 12 7 3 5 2 3 8 1 23 1 4 4 1 4 5 2 3 1 1 3 . . Successful 53 | . 6 1 3 . 2 . 8 2 1 1 2 1 2 . 10 1 3 2 1 1 1 2 . 1 1 1 . . Failed 68 | . 2 2 4 . 3 5 4 5 2 4 . 2 6 1 13 . 1 2 . 3 4 . 3 . . 2 . . Catastrophic 18 | . 1 . . . 1 2 1 3 1 . . . 2 1 1 . . 1 . . 1 . 1 . . 2 . . Database Lockouts 1 | . 1 . . . . . . . . . . . . . . . . . . . . . . . . . . . Manual 58 | . 8 3 7 . 4 . 9 . 2 . 1 . 5 . 12 . 3 . . . 2 . . . . 2 . . Terminals 104 | . 8 3 7 . 4 5 11 7 2 5 . 3 7 1 20 1 3 4 . 4 5 . 3 . 1 . . . Fabricators 2 | . . . . . . . . . . . . . . . . . . . . . . . . . . 2 . . Repair Stations . | . . . . . . . . . . . . . . . . . . . . . . . . . . . . . Recycling Units 2 | . 1 . . . . . . . . . 1 . . . . . . . . . . . . . . . . . Scanalyzers . | . . . . . . . . . . . . . . . . . . . . . . . . . . . . . Garrison Access 14 | . . . . . 1 . 1 . 1 . 1 . 1 . 3 . 1 . 1 . . 2 . 1 . 1 . . Terminal Hacks 23 | . 3 1 . . . . 5 2 . 1 . 1 . . 4 1 1 2 . 1 . . . . 1 . . . Robot Analysis 4 | . 1 1 . . . . 2 . . . . . . . . . . . . . . . . . . . . . Emergency Access Points 5 | . . . . . . . . 1 . . . . . . . 1 . 1 . 1 . . . . 1 . . . Terminal Index 3 | . . . . . . . 1 . . . . . . . 1 . 1 . . . . . . . . . . . Unreport Threat 4 | . 1 . . . . . 1 . . . . . . . 2 . . . . . . . . . . . . . Locate Traps 2 | . 1 . . . . . . . . . . . . . 1 . . . . . . . . . . . . . Zone Layout 1 | . . . . . . . 1 . . . . . . . . . . . . . . . . . . . . . Garrison Registry 1 | . . . . . . . . . . 1 . . . . . . . . . . . . . . . . . . Patrol Navigation 3 | . . . . . . . . 1 . . . 1 . . . . . 1 . . . . . . . . . . Fabricator Hacks . | . . . . . . . . . . . . . . . . . . . . . . . . . . . . . Repair Station Hacks . | . . . . . . . . . . . . . . . . . . . . . . . . . . . . . Recycling Unit Hacks . | . . . . . . . . . . . . . . . . . . . . . . . . . . . . . Scanalyzer . | . . . . . . . . . . . . . . . . . . . . . . . . . . . . . Garrison Access Hacks 14 | . . . . . 1 . 1 . 1 . 1 . 1 . 3 . 1 . 1 . . 2 . 1 . 1 . . Unlock Access 11 | . . . . . 1 . 1 . 1 . 1 . 1 . 1 . 1 . 1 . . 1 . 1 . 1 . . Seal Access 1 | . . . . . . . . . . . . . . . 1 . . . . . . . . . . . . . Coupler Status 2 | . . . . . . . . . . . . . . . 1 . . . . . . 1 . . . . . . Unauthorized Hacks 16 | . 3 . 3 . 1 . 2 . . . 1 . 1 . 3 . 1 . . . 1 . . . . . . . Terminals 14 | . 2 . 3 . 1 . 2 . . . . . 1 . 3 . 1 . . . 1 . . . . . . . Botnet 12 | . 2 . 2 . 1 . 2 . . . . . 1 . 2 . 1 . . . 1 . . . . . . . Operators 2 | . . . 1 . . . . . . . . . . . 1 . . . . . . . . . . . . . Fabricators . | . . . . . . . . . . . . . . . . . . . . . . . . . . . . . Repair Stations . | . . . . . . . . . . . . . . . . . . . . . . . . . . . . . Recycling Units 2 | . 1 . . . . . . . . . 1 . . . . . . . . . . . . . . . . . Recyclers 2 | . 1 . . . . . . . . . 1 . . . . . . . . . . . . . . . . . Scanalyzers . | . . . . . . . . . . . . . . . . . . . . . . . . . . . . . Garrison Access . | . . . . . . . . . . . . . . . . . . . . . . . . . . . . . Data Cores Recovered . | . . . . . . . . . . . . . . . . . . . . . . . . . . . . . Used . | . . . . . . . . . . . . . . . . . . . . . . . . . . . . . Hacking Detections 43 | . 3 1 3 . 2 2 4 2 1 2 . 1 4 1 6 . 2 2 . 1 2 1 1 1 . 1 . . Full Trace Events 8 | . . . . . . 1 1 1 1 . . . . . . . . . . 1 1 . 1 . . 1 . . Feedback Events 1 | . . . . . . 1 . . . . . . . . . . . . . . . . . . . . . . Corruption 1 | . . . . . . 1 . . . . . . . . . . . . . . . . . . . . . . Feedback Blocked . | . . . . . . . . . . . . . . . . . . . . . . . . . . . . . Robot Schematics Acquired . | . . . . . . . . . . . . . . . . . . . . . . . . . . . . . Robots Built . | . . . . . . . . . . . . . . . . . . . . . . . . . . . . . Authchips . | . . . . . . . . . . . . . . . . . . . . . . . . . . . . . Time . | . . . . . . . . . . . . . . . . . . . . . . . . . . . . . Total Robot Build Rating . | . . . . . . . . . . . . . . . . . . . . . . . . . . . . . Part Schematics Acquired . | . . . . . . . . . . . . . . . . . . . . . . . . . . . . . Parts Built . | . . . . . . . . . . . . . . . . . . . . . . . . . . . . . Authchips . | . . . . . . . . . . . . . . . . . . . . . . . . . . . . . Time . | . . . . . . . . . . . . . . . . . . . . . . . . . . . . . Total Part Build Rating . | . . . . . . . . . . . . . . . . . . . . . . . . . . . . . Parts Repaired . | . . . . . . . . . . . . . . . . . . . . . . . . . . . . . Time . | . . . . . . . . . . . . . . . . . . . . . . . . . . . . . Parts Recycled . | . . . . . . . . . . . . . . . . . . . . . . . . . . . . . Recycled Matter . | . . . . . . . . . . . . . . . . . . . . . . . . . . . . . Retrieved Matter . | . . . . . . . . . . . . . . . . . . . . . . . . . . . . . Retrieved Components . | . . . . . . . . . . . . . . . . . . . . . . . . . . . . . Parts Scanalyzed . | . . . . . . . . . . . . . . . . . . . . . . . . . . . . . Part Schematics Acquired . | . . . . . . . . . . . . . . . . . . . . . . . . . . . . . Parts Damaged . | . . . . . . . . . . . . . . . . . . . . . . . . . . . . . Bothacking | -11 -10 -10 -9 -9 -8 -8 -8 -8 -7 -7 -7 -7 -6 -6 -5 -5 -5 -5 -4 -4 -4 -3 -3 -2 -2 -1 -1 -1 ------------ Run | Jun Mat Min Mat Min Mat Gar Mat Gar Fac Gar Fac Gar Fac Gar Fac Gar Fac Gar Fac Gar Ext Res Gar Res Gar Acc Gar Acc Used RIF Installer 11 | . . . . . . 1 . 1 . 1 . 1 . 1 . 1 . 1 . 1 . . 1 . . . 2 . Coupler Efficiency 1 | . . . . . . . . . . . . . . . . . . . . . . . 1 . . . . . Hotswap 1 | . . . . . . . . . . . . . . . . . . . . . . . . . . . 1 . Code Merge 1 | . . . . . . . . . . . . . . . . . . 1 . . . . . . . . . . Command Fork 1 | . . . . . . . . . . . . 1 . . . . . . . . . . . . . . . . Signal Jammer 1 | . . . . . . . . . . . . . . . . . . . . . . . . . . . 1 . Patrol Navigation 1 | . . . . . . . . . . 1 . . . . . . . . . . . . . . . . . . Alert ID Control 1 | . . . . . . . . 1 . . . . . . . . . . . . . . . . . . . . Program Shield 1 | . . . . . . . . . . . . . . . . . . . . 1 . . . . . . . . Autooverride 2 | . . . . . . . . . . . . . . 1 . 1 . . . . . . . . . . . . Robots Hacked 40 | . . . . . . . . . . . . . . . . 2 . 1 1 5 14 . 8 1 8 . . . Non-combat 1 | . . . . . . . . . . . . . . . . . . . . . . . . 1 . . . . Combat 39 | . . . . . . . . . . . . . . . . 2 . 1 1 5 14 . 8 . 8 . . . Autooverrided 9 | . . . . . . . . . . . . . . . . . . . 1 . 4 . 1 . 3 . . . Robot Hacks Applied 47 | . . . . . . . . . . . . . . . . 4 . 1 . 8 16 . 9 1 8 . . . map_route 1 | . . . . . . . . . . . . . . . . . . . . . . . . 1 . . . . tweak_propulsion 1 | . . . . . . . . . . . . . . . . . . . . . 1 . . . . . . . scatter_targeting 15 | . . . . . . . . . . . . . . . . 1 . 1 . 3 4 . 3 . 3 . . . link_complan 13 | . . . . . . . . . . . . . . . . 2 . . . 2 4 . 2 . 3 . . . disrupt_area 11 | . . . . . . . . . . . . . . . . . . . . 3 6 . 1 . 1 . . . spike_heat 2 | . . . . . . . . . . . . . . . . . . . . . . . 2 . . . . . overload_power 2 | . . . . . . . . . . . . . . . . . . . . . 1 . . . 1 . . . overwrite_iff 1 | . . . . . . . . . . . . . . . . 1 . . . . . . . . . . . . formatsys_high 1 | . . . . . . . . . . . . . . . . . . . . . . . 1 . . . . . Relay Couplers Released 33 | . . . . . . . . 4 . . . . . . 1 6 . 3 . 13 . . 3 . 3 . . . Machine Destruction 29 | . . . . . . . . 4 . . . . . . 1 6 . 3 . 9 . . 3 . 3 . . . Programmers 4 | . . . . . . . . . . . . . . . . . . . . 4 . . . . . . . . Attached 8 | . . . . . . . . . . . . . . . . 1 . 2 . 1 1 . 1 1 1 . . . Merged Code Value 25 | . . . . . . . . . . . . . . . . . . . . 25 . . . . . . . . Fabnet Peak Effective % . | . . . . . . . . . . . . . . . . . . . . . . . . . . . . . Robots Rewired 4 | . . . . . . . . . . . . . . . . . . . . . 4 . . . . . . . Allies Hacked 4 | . . . . . . . . . . . . . . 1 . 1 . . . . 2 . . . . . . . Hacks Repelled . | . . . . . . . . . . . . . . . . . . . . . . . . . . . . . Allies | -11 -10 -10 -9 -9 -8 -8 -8 -8 -7 -7 -7 -7 -6 -6 -5 -5 -5 -5 -4 -4 -4 -3 -3 -2 -2 -1 -1 -1 -------- Run | Jun Mat Min Mat Min Mat Gar Mat Gar Fac Gar Fac Gar Fac Gar Fac Gar Fac Gar Fac Gar Ext Res Gar Res Gar Acc Gar Acc Total Allies 23 | . . . . . . 1 . . . . . 2 . . 3 2 . . 1 . 9 . 2 . 3 . . . Largest Group 3 | . . . . . . 1 1 . . . . 2 2 2 3 2 1 1 1 . 3 . 1 . 2 . . . Highest-Rated Group 160 | . . . . . . 25 25 . . . . 160 160 160 93 62 46 46 58 . 135 . 64 . 69 . . . Highest-Rated Ally 80 | . . . . . . 25 25 . . . . 80 80 80 31 49 46 46 58 . 51 . 64 . 69 . . . Total Orders . | . . . . . . . . . . . . . . . . . . . . . . . . . . . . . Ally Attacks 112 | . . . . . . 3 . . . . . . 6 23 26 3 . 9 3 . 20 . 11 . 8 . . . Total Damage 2983 | . . . . . . 204 . . . . . . 71 945 352 124 . 128 113 . 513 . 386 . 147 . . . Kills 23 | . . . . . . 1 . . . . . . 2 4 7 . . 1 2 . 4 . 1 . 1 . . . Allies Corrupted 1 | . . . . . . . . . . . . . . . . . . . . . 1 . . . . . . . Allies Melted 1 | . . . . . . . 1 . . . . . . . . . . . . . . . . . . . . . Intel | -11 -10 -10 -9 -9 -8 -8 -8 -8 -7 -7 -7 -7 -6 -6 -5 -5 -5 -5 -4 -4 -4 -3 -3 -2 -2 -1 -1 -1 ------- Run | Jun Mat Min Mat Min Mat Gar Mat Gar Fac Gar Fac Gar Fac Gar Fac Gar Fac Gar Fac Gar Ext Res Gar Res Gar Acc Gar Acc Robot Analysis Total 4 | . 1 1 . . . . 2 . . . . . . . . . . . . . . . . . . . . . Derelict Logs Recovered 3 | . . 2 . 1 . . . . . . . . . . . . . . . . . . . . . . . . Drone Launches . | . . . . . . . . . . . . . . . . . . . . . . . . . . . . . Drone Recoveries . | . . . . . . . . . . . . . . . . . . . . . . . . . . . . . Exploration | -11 -10 -10 -9 -9 -8 -8 -8 -8 -7 -7 -7 -7 -6 -6 -5 -5 -5 -5 -4 -4 -4 -3 -3 -2 -2 -1 -1 -1 ------------- Run | Jun Mat Min Mat Min Mat Gar Mat Gar Fac Gar Fac Gar Fac Gar Fac Gar Fac Gar Fac Gar Ext Res Gar Res Gar Acc Gar Acc Turns Passed 12239 | 37 484 203 412 137 353 375 226 1024 258 629 551 579 341 411 358 858 310 568 320 843 1212 99 605 140 511 244 68 83 Spaces Moved 7906 | 32 303 104 244 93 183 273 144 673 194 374 409 323 264 253 285 516 240 312 202 546 597 72 288 99 237 364 121 161 Core 730 | 32 8 . . . . . . . . . . . . . . . . . . . . . . . 45 363 121 161 Treads . | . . . . . . . . . . . . . . . . . . . . . . . . . . . . . Legs 6838 | . 295 104 244 93 183 273 144 673 194 374 409 323 68 111 285 516 240 312 202 546 597 72 288 99 192 1 . . Wheels 338 | . . . . . . . . . . . . . 196 142 . . . . . . . . . . . . . . Hover . | . . . . . . . . . . . . . . . . . . . . . . . . . . . . . Flight . | . . . . . . . . . . . . . . . . . . . . . . . . . . . . . Fastest Speed 50 | 50 50 120 120 120 120 120 120 110 112 112 112 110 115 112 112 112 112 112 120 120 120 120 120 120 50 50 50 50 Average Speed 111 | 50 118 120 120 120 120 120 120 117 112 116 112 116 116 120 112 113 112 118 120 120 120 120 120 120 106 50 50 50 Slowest Speed 186 | 50 120 120 120 120 120 120 120 186 112 120 112 120 120 130 112 186 112 120 120 120 120 120 120 120 120 120 50 50 Overloaded Moves . | . . . . . . . . . . . . . . . . . . . . . . . . . . . . . Propulsion Burnouts . | . . . . . . . . . . . . . . . . . . . . . . . . . . . . . Robots Hopped . | . . . . . . . . . . . . . . . . . . . . . . . . . . . . . Cave-ins Triggered . | . . . . . . . . . . . . . . . . . . . . . . . . . . . . . Exploration Rate (%) 30 | 3 56 26 26 23 11 63 18 77 10 50 20 47 10 39 12 71 12 44 10 60 59 4 34 5 33 15 32 7 Regions Visited 28 Branch Regions 3 Pre-discovered Areas 1 | . . . . 1 . . . . . . . . . . . . . . . . . . . . . . . . Known Exits Taken 14 | . . . 1 1 1 . 1 . 1 . 1 . 1 . 1 . 1 . 1 . 1 1 . 1 . 1 . . Unknown Exits Taken 3 | 1 1 1 . . . . . . . . . . . . . . . . . . . . . . . . . . Scrap Searched . | . . . . . . . . . . . . . . . . . . . . . . . . . . . . . Spaces Dug 42 | . . . 4 . . . . 10 4 . 7 1 2 . 3 . . . 7 1 . 1 . 1 1 . . . Terrain Destroyed 401 | . 4 . 36 . 15 74 9 99 4 25 9 10 2 . 3 42 . . 7 7 26 1 20 1 7 . . . Melee 27 | . . . . . . . . . 4 . 6 1 2 . 3 . . . 7 1 . 1 . 1 1 . . . Projectile 34 | . . . 5 . . . . 2 . 5 3 3 . . . . . . . . 9 . 1 . 6 . . . AOE 340 | . 4 . 31 . 15 74 9 97 . 20 . 6 . . . 42 . . . 6 17 . 19 . . . . . Terrain Rammed . | . . . . . . . . . . . . . . . . . . . . . . . . . . . . . Walls Destroyed . | . . . . . . . . . . . . . . . . . . . . . . . . . . . . . Machines Disabled . | . . . . . . . . . . . . . . . . . . . . . . . . . . . . . Actions | -11 -10 -10 -9 -9 -8 -8 -8 -8 -7 -7 -7 -7 -6 -6 -5 -5 -5 -5 -4 -4 -4 -3 -3 -2 -2 -1 -1 -1 --------- Run | Jun Mat Min Mat Min Mat Gar Mat Gar Fac Gar Fac Gar Fac Gar Fac Gar Fac Gar Fac Gar Ext Res Gar Res Gar Acc Gar Acc Total 10004 | 44 366 141 309 110 274 310 181 806 225 484 464 447 290 337 309 681 281 428 246 655 893 82 449 113 389 400 127 163 Wait 315 | . 7 1 . 3 20 18 6 10 4 25 10 30 1 6 1 32 9 15 4 11 20 . 30 . 52 . . . Move 7867 | 31 302 103 243 92 182 271 143 671 193 372 408 321 263 251 284 514 239 310 201 544 596 71 286 98 235 363 119 161 Hop . | . . . . . . . . . . . . . . . . . . . . . . . . . . . . . Pick Up 156 | 5 8 4 12 3 9 1 2 10 5 6 4 8 7 7 2 13 4 3 3 5 13 1 9 1 8 3 . . Fast Attach 114 | 5 . 1 3 1 5 2 2 8 2 2 1 6 3 7 2 6 8 8 3 3 12 1 7 . 5 10 . 1 Attach 113 | . 4 4 4 . 8 . 2 11 2 4 2 9 3 4 2 8 3 3 2 3 6 3 5 3 13 4 . 1 Detach 43 | . 2 1 1 . . 1 2 5 1 2 1 1 1 . 1 3 3 3 2 . 3 1 5 . 1 3 . . Swap 350 | . 4 2 15 3 12 7 10 18 4 25 12 18 2 13 6 23 3 29 10 23 59 3 31 4 14 . . . Drop 210 | . 3 2 6 4 16 4 5 12 6 9 5 7 5 17 4 14 11 13 5 11 27 1 13 1 5 4 . . Fire 660 | 3 36 23 25 4 22 6 9 47 . 35 10 39 2 14 3 65 1 44 6 53 102 . 60 5 46 . . . Melee 97 | . . . . . . . . 14 8 4 11 3 3 . 4 3 . . 10 2 14 1 . 1 6 13 . . Ram 4 | . . . . . . . . . . . . . . . . . . . . . . . . . . . 4 . Kick . | . . . . . . . . . . . . . . . . . . . . . . . . . . . . . Crush . | . . . . . . . . . . . . . . . . . . . . . . . . . . . . . Escape Stasis 34 | . . . . . . . . . . . . 5 . 18 . . . . . . . . 3 . 4 . 4 . Rewire 41 | . . . . . . . . . . . . . . . . . . . . . 41 . . . . . . . Trap . | . . . . . . . . . . . . . . . . . . . . . . . . . . . . . Miscellaneous . | . . . . . . . . . . . . . . . . . . . . . . . . . . . . . Route ------- -11/Junkyard -10/Materials (discovered 2 exits: *Mat / *Min) -10/Mines -9/Materials (discovered 3 exits: Mat / *Min x2) -9/Mines -8/Materials -8/Garrison (discovered 3 exits: *Mat x3) -8/Materials -8/Garrison (discovered 3 exits: *Fac x3) -7/Factory (discovered 2 exits: [*Low] / Gar) -7/Garrison (discovered 3 exits: *Fac x3) -7/Factory (discovered 2 exits: [*Low] / Gar) -7/Garrison -6/Factory -6/Garrison -5/Factory (discovered 2 exits: *Upp / Gar) -5/Garrison (discovered 3 exits: *Fac x3) -5/Factory -5/Garrison -4/Factory -4/Garrison (discovered 2 exits: *Ext x2) -4/Extension -3/Research -3/Garrison -2/Research -2/Garrison -1/Access -1/Garrison -1/Access History --------- Turn | Location | Event 2 | -11/Junkyard | Met Revision 17 12 | -11/Junkyard | Discovered new exit (range 16) 38 | -11/Junkyard | Entered Materials 309 | -10/Materials | Build established: Mutant 349 | -10/Materials | Discovered new exit (range 8) 444 | -10/Materials | Central database locked down 487 | -10/Materials | Discovered new exit (range 6) 522 | -10/Materials | Entered Mines 585 | -10/Mines | Lost 3 parts (2p1w) 624 | -10/Mines | Discovered new exit (range 9) 639 | -10/Mines | Learned 8 Materials zone layouts 645 | -10/Mines | Found a hidden stash of uninstalled traps 689 | -10/Mines | Learned location of 1 exit from Materials 725 | -10/Mines | Entered Materials 725 | -9/Materials | Evolved 2 slots: Propulsion x1, Utility x1 726 | -9/Materials | Identified exit to Materials 727 | -9/Materials | Identified exit to Mines 1137 | -9/Materials | Entered Mines 1200 | -9/Mines | Discovered exit to Materials (range 11) 1240 | -9/Mines | Learned 4 Materials zone layouts 1265 | -9/Mines | Learned location of Storage (-7) 1274 | -9/Mines | Entered Materials 1274 | -8/Materials | Evolved 2 slots: Utility x2 1526 | -8/Materials | Garrison activated, responded to threat 1561 | -8/Materials | Build established: Scavenger-Mutant 1626 | -8/Materials | Identified exit to Garrison 1627 | -8/Materials | Entered Garrison 1627 | -8/Garrison | Discovered recently destroyed garrison 1633 | -8/Garrison | Rescued a captive Derelict 1773 | -8/Garrison | Installed Relay Interface Framework 1825 | -8/Garrison | Discovered new exit (range 15) 1855 | -8/Garrison | Discovered new exit (range 5) 1977 | -8/Garrison | Discovered new exit (range 8) 1983 | -8/Garrison | Build established: Mutant 2002 | -8/Garrison | Entered Materials 2002 | -8/Materials | Accompanied by 1 ally 2170 | -8/Materials | Garrison activated, responded to threat 2227 | -8/Materials | Identified exit to Garrison 2228 | -8/Materials | Entered Garrison 2334 | -8/Garrison | Triggered checkpoint 2334 | -8/Garrison | Triggered checkpoint 2402 | -8/Garrison | Destroyed 10 combat bots 2415 | -8/Garrison | Lost 4 parts (2n2u) 2452 | -8/Garrison | Triggered checkpoint 2505 | -8/Garrison | Discovered new exit (range 12) 2624 | -8/Garrison | Core integrity fell below 50% 2740 | -8/Garrison | Triggered checkpoint 2747 | -8/Garrison | Build established: Scavenger-Mutant 2748 | -8/Garrison | Discovered new exit (range 12) 2880 | -8/Garrison | Triggered checkpoint 2920 | -8/Garrison | Discovered new exit (range 12) 3012 | -8/Garrison | Triggered checkpoint 3077 | -8/Garrison | Garrison Relay disabled 3093 | -8/Garrison | Expanded RIF knowledge: Alert ID Control 3252 | -8/Garrison | Entered Factory 3252 | -7/Factory | Evolved 2 slots: Propulsion x1, Weapon x1 3280 | -7/Factory | Discovered new exit (range 5) 3509 | -7/Factory | Identified exit to Garrison 3510 | -7/Factory | Entered Garrison 3623 | -7/Garrison | Discovered new exit (range 85) 3623 | -7/Garrison | Discovered new exit (range 74) 3623 | -7/Garrison | Discovered new exit (range 36) 3737 | -7/Garrison | Triggered checkpoint 3836 | -7/Garrison | Triggered checkpoint 4020 | -7/Garrison | Triggered checkpoint 4084 | -7/Garrison | Expanded RIF knowledge: Patrol Navigation 4137 | -7/Garrison | Identified exit to Factory 4139 | -7/Garrison | Entered Factory 4606 | -7/Factory | Discovered new exit (range 17) 4638 | -7/Factory | Build established: Scavenger-Assassin 4689 | -7/Factory | Identified exit to Garrison 4690 | -7/Factory | Entered Garrison 4794 | -7/Garrison | Triggered checkpoint 4932 | -7/Garrison | Triggered checkpoint 4986 | -7/Garrison | Destroyed 7 combat bots 5059 | -7/Garrison | Lost 10 parts (2p3n2u3w) 5196 | -7/Garrison | Discovered new exit (range 12) 5206 | -7/Garrison | Expanded RIF knowledge: Command Fork 5245 | -7/Garrison | Found embedded Infiltrators 5267 | -7/Garrison | Identified exit to Factory 5269 | -7/Garrison | Entered Factory 5269 | -6/Factory | Accompanied by 2 allies 5269 | -6/Factory | Evolved 2 slots: Utility x2 5596 | -6/Factory | Identified exit to Garrison 5610 | -6/Factory | Entered Garrison 5610 | -6/Garrison | Accompanied by 2 allies 5680 | -6/Garrison | Triggered checkpoint 5704 | -6/Garrison | Triggered checkpoint 5760 | -6/Garrison | Triggered checkpoint 5822 | -6/Garrison | Expanded RIF knowledge: Autooverride 5998 | -6/Garrison | Build established: Scavenger-Gunner 6010 | -6/Garrison | Discovered new exit (range 10) 6019 | -6/Garrison | Identified exit to Factory 6021 | -6/Garrison | Entered Factory 6021 | -5/Factory | Evolved 2 slots: Utility x2 6148 | -5/Factory | Discovered new exit (range 16) 6164 | -5/Factory | Identified exit to Upper Caves 6187 | -5/Factory | Allied Derelicts emerged from ambush trap array 6369 | -5/Factory | Identified exit to Garrison 6379 | -5/Factory | Entered Garrison 6379 | -5/Garrison | Accompanied by 2 allies 6499 | -5/Garrison | Spotted B-75 Beast 6501 | -5/Garrison | Triggered checkpoint 6502 | -5/Garrison | Triggered checkpoint 6656 | -5/Garrison | Destroyed B-75 Beast 6685 | -5/Garrison | Lost 4 parts (1p1u2w) 6761 | -5/Garrison | Discovered new exit (range 11) 6800 | -5/Garrison | Triggered checkpoint 6813 | -5/Garrison | Garrison Relay disabled 6854 | -5/Garrison | Identified exit to Factory 6991 | -5/Garrison | Spotted B-75 Beast 6993 | -5/Garrison | Discovered exit to Factory (range 10) 7006 | -5/Garrison | Triggered checkpoint 7015 | -5/Garrison | Garrison Relay disabled 7064 | -5/Garrison | Triggered checkpoint 7160 | -5/Garrison | Discovered exit to Factory (range 15) 7171 | -5/Garrison | Expanded RIF knowledge: Autooverride 7210 | -5/Garrison | Rescued a captive Derelict 7237 | -5/Garrison | Entered Factory 7237 | -5/Factory | Accompanied by 1 ally 7537 | -5/Factory | First assault squad dispatched 7546 | -5/Factory | Identified exit to Garrison 7547 | -5/Factory | Entered Garrison 7547 | -5/Garrison | Accompanied by 1 ally 7798 | -5/Garrison | Spotted B-75 Beast 7798 | -5/Garrison | Triggered checkpoint 7848 | -5/Garrison | Destroyed B-75 Beast 7920 | -5/Garrison | Discovered new exit (range 14) 7932 | -5/Garrison | Expanded RIF knowledge: Code Merge 7970 | -5/Garrison | Triggered checkpoint 8037 | -5/Garrison | Garrison Relay disabled 8113 | -5/Garrison | Identified exit to Factory 8115 | -5/Garrison | Entered Factory 8115 | -4/Factory | Evolved 2 slots: Propulsion x1, Utility x1 8316 | -4/Factory | Build established: Scavenger-Assassin 8355 | -4/Factory | Identified exit to Garrison 8435 | -4/Factory | Entered Garrison 8572 | -4/Garrison | Triggered checkpoint 8601 | -4/Garrison | Garrison Relay disabled 8694 | -4/Garrison | Triggered checkpoint 8990 | -4/Garrison | Triggered checkpoint 9055 | -4/Garrison | Garrison Relay disabled 9094 | -4/Garrison | Discovered new exit (range 10) 9159 | -4/Garrison | Triggered checkpoint 9246 | -4/Garrison | Expanded RIF knowledge: Program Shield 9253 | -4/Garrison | Discovered new exit (range 11) 9264 | -4/Garrison | Identified exit to Extension 9278 | -4/Garrison | Entered Extension 9704 | -4/Extension | P-70 Sage assimilated allied 70-5LX(g) 9778 | -4/Extension | First assault squad dispatched 9945 | -4/Extension | Energy Cycler disabled 9945 | -4/Extension | Rescued a captive Derelict 9945 | -4/Extension | Rescued a captive Derelict 9947 | -4/Extension | Rescued a captive Derelict 9948 | -4/Extension | Rescued a captive Derelict 9949 | -4/Extension | Rescued a captive Derelict 9950 | -4/Extension | Rescued a captive Derelict 9950 | -4/Extension | Rescued a captive Derelict 9951 | -4/Extension | Rescued a captive Derelict 9973 | -4/Extension | Rescued a captive Derelict 10173 | -4/Extension | Spotted B-86 Titan 10244 | -4/Extension | Destroyed B-86 Titan 10255 | -4/Extension | Discovered new exit (range 14) 10328 | -4/Extension | Disrupted transfer network 10467 | -4/Extension | Extracted ID and sensor layout for unrecognized location from A7's data core 10486 | -4/Extension | Identified exit to Research 10488 | -4/Extension | System corruption reached 10% 10490 | -4/Extension | Entered Research 10490 | -3/Research | Evolved 2 slots: Power x1, Utility x1 10531 | -3/Research | Found Unknown Device 10531 | -3/Research | Identified Antimissile System 10573 | -3/Research | Identified exit to Garrison 10589 | -3/Research | Entered Garrison 10702 | -3/Garrison | Triggered checkpoint 10725 | -3/Garrison | Garrison Relay disabled 10770 | -3/Garrison | Spotted B-86 Titan 10958 | -3/Garrison | Destroyed B-86 Titan 11112 | -3/Garrison | Triggered checkpoint 11159 | -3/Garrison | Expanded RIF knowledge: Coupler Efficiency 11182 | -3/Garrison | Discovered new exit (range 10) 11193 | -3/Garrison | Identified exit to Research 11194 | -3/Garrison | Entered Research 11194 | -2/Research | Evolved 2 slots: Utility x1, Weapon x1 11217 | -2/Research | Spotted B-90 Cyclops 11333 | -2/Research | Identified exit to Garrison 11334 | -2/Research | Entered Garrison 11374 | -2/Garrison | Spotted B-90 Cyclops 11479 | -2/Garrison | Lost 3 parts (1p1n1u) 11490 | -2/Garrison | Triggered checkpoint 11542 | -2/Garrison | Garrison Relay disabled 11714 | -2/Garrison | Destroyed B-90 Cyclops 11740 | -2/Garrison | Triggered checkpoint 11745 | -2/Garrison | Heavy support dispatched to Access 11752 | -2/Garrison | Triggered checkpoint 11790 | -2/Garrison | Triggered checkpoint 11824 | -2/Garrison | Released all parts (14) 11834 | -2/Garrison | Triggered checkpoint 11839 | -2/Garrison | Discovered new exit (range 12) 11845 | -2/Garrison | Entered Access 11845 | -1/Access | Evolved 2 slots: Utility x2 11850 | -1/Access | Lost 16 parts (2p7n1u6w) 12010 | -1/Access | Found Prototype Device 12010 | -1/Access | Identified Exp. Force Field 12073 | -1/Access | Spotted B-99 Colossus 12085 | -1/Access | Build established: Mutant 12088 | -1/Access | Identified exit to Garrison 12089 | -1/Access | Entered Garrison 12104 | -1/Garrison | Expanded RIF knowledge: Hotswap 12116 | -1/Garrison | Expanded RIF knowledge: Signal Jamming 12129 | -1/Garrison | Spotted B-99 Colossus 12131 | -1/Garrison | Triggered checkpoint 12138 | -1/Garrison | Triggered checkpoint 12148 | -1/Garrison | Core integrity fell below 50% 12152 | -1/Garrison | Discovered new exit (range 10) 12157 | -1/Garrison | Entered Access 12187 | -1/Access | Lost 6 parts (3n2u1w) 12212 | -1/Access | Core integrity fell below 20% 12240 | -1/Access | Destroyed by S-43 Plague with Heavy Machine Gun Last Messages --------------- 12146_ Field strength at 31. 12146_ Adv. Melee Analysis Suite destroyed. 12147_ Field strength at 1. 12147_ Stasis field depleted. 12147_ Powered Hammer destroyed. 12148_ Slammed into S-43 Plague. 12149_ P-80 Master resets S-43 Plague, system corruption cleaned. 12152_ EXIT=FOUND 12156_ Imp. Melee Analysis Suite destroyed. 12157_ Attempting to access garrison exit controls... RIF authorized. LOCATION=UNKNOWN GOAL=ESCAPE 12160_ ALERT: Access garrison breached. 12160_ ALERT: Machine network offline. 12166_ Acquired Adv. Melee Analysis Suite. 12201_ Penetrated by Slug. 12201_ Slug penetrates Wall. 12211_ Exp. Optical Array destroyed. 12235_ Structural Scanner destroyed. Map ----- +----------------------------------------------------+ | ?????????????????????????????????????????????????? | | ?????????????????????????????????????????????????? | | ?????????????????????????????????????????????????? | | ?????????????????????????????????????????????????? | | ?????????????????????????????????????????????????? | | ?????????????????????????????????????????????????? | | ?????????????????????????????????????????????????? | | ?????????????????????????????????????????????????? | | ?????????????????????????????????????????????????? | | ?????????????????????????????????????????????????? | | ????????????????????????????????????? ???????????? | | ???????????????????????????????????? "?????????? | | ???????????????????????????????????? "?????????? | | ???????????????????????????????????? "?????????? | | ???????????????????????????????????? ""???? + ? | | ???????????????????????????????????? """"" # ? | | ???????????????## ?????????????????? """"" # ? | | ???????????????## ????????????????## # ? | | ???????????????## ????????????????## # ? | | ???????????????## ?################ # ? | | ?????????? ## ################# # ? | | ??????????####+## ### p ! ##? | | ?????????? m ##? | | ?????????? s u ##? | | ????????? ss s ##? | | ????????? ^ @ "" "" ######+????? | | ????????? s""R"" # ?????????? | | ???????? """" # ?????????? | | ???????? # ?????????? | | ??????? # ?????????? | | ??????? # ?????????? | | ??????? ########### # ?????????? | | ??????? ########+############# # ?????????? | | ?????????? ?? # ##??? # # ?????????? | | ?????????????? # ! ##??? # # ?????????? | | ?????????????? # ##??? # # ?????????? | | ?????????????? + ##??? # # ?????????? | | ??????????????## ##??? # # ?????????? | | ??????????????## ## ?? # ##?????????? | | ??????????????##############/### ?? + ##?????????? | | ?????????????? # ?? # ###########? | | ????#########? # ? # ###########? | | ????# #? """"" ###### #### ### | | ????# # """""""" ##### ### ### | | ????# # """""""" / | | ????# + """"" ##### ### | | ##### # ####### ### | | # # ####### ##? | | # ########################## ##? | | # ##? | +----------------------------------------------------+ Best States ------------- Heat Dissipation 97 Energy Generation 45 Energy Capacity 410 Matter Stores 300 Matter Capacity 300 Sight Range 23 Robot Scan Range 16 Terrain Scan Density 10 Jamming Range 12 Base Temperature (-) 200 Corruption Containment 12 Armor Coverage 825 Resistance: KI 30 Resistance: TH 20 Weapon Cycling 15 Evasion (%) 55 Targeting Accuracy 16 Melee Accuracy 14 Relay Coupler Types 4 Relay Coupler Value 94 Item Schematics ----------------- None Robot Schematics ------------------ None Fabricated ------------ Nothing Alien Tech Used ----------------- None Achievements -------------- None Challenges ------------ None Game ------ Seed GravityWeaponChronowheel Manual? 0 Play Time 03:53:36 Cumulative 891.0 hours Start 2023.02.12 @ 14:00:45 End 2023.02.13 @ 00:09:41 Sessions 15 Manual Loads 0 Difficulty Rogue Special Mode None Game No. 466 Rogue 339 Adventurer 125 Explorer 2 Win Type - Total 103 Types 83/7/7/1/2/0/0/2/1 Lore% 85 Gallery% 90 Achievement% 81 Wizard Run 0 Options --------- ASCII 0 Keyboard 1 Movement Numpad Keybinds 0 Fullscreen 1 Font 36/TerminusFine Map View 76x50 Tactical HUD 1 Map Filters NONE Filters NONE Steam 1 RUN: 4b81e398-4185-4569-8021-aec845823dbd